[Event "Nis GM 2019"]
[Site "Nis"]
[Date "2019.12.07"]
[Round "8.1"]
[White "Ivic, Velimir"]
[Black "Perunovic, Miodrag"]
[Result "1-0"]
[ECO "B38"]
[WhiteElo "2531"]
[BlackElo "2433"]
[Annotator "ChessBase"]
[PlyCount "65"]
[EventDate "2019.11.30"]
[EventType "tourn"]
[EventCountry "SRB"]
[SourceTitle "playchess.com"]
[Source "ChessBase"]
[SourceQuality "1"]
[TimeControl "40/5400+30:1800+30"]

1. e4 {[%emt 0:00:00]} c5 {[%emt 0:12:37]} 2. Nf3 {[%emt 0:00:00]} g6 {[%emt 0:00:16]} 3. d4 {[%emt 0:00:04]} cxd4 4. Nxd4 {[%emt 0:00:05]} Nc6 {[%emt 0:01:02]} 5. c4 {[%emt 0:00:13]} Bg7 {[%emt 0:00:08]} 6. Be3 {[%emt 0:00:08]} Nf6 {[%emt 0:00:08]} 7. Nc3 {[%emt 0:00:06]} d6 {[%emt 0:00:51]} 8. Be2 {[%emt 0:00:22]} Nxd4 {[%emt 0:02:33]} 9. Bxd4 {[%emt 0:06:06]} O-O {[%emt 0:00:03]} 10. O-O {[%emt 0:00:05]} Bd7 {[%emt 0:00:09]} 11. Qd3 {[%emt 0:04:20]} a5 {[%emt 0:08:06]} 12. Rad1 {[%emt 0:07:08]} Bc6 {[%emt 0:00:44]} 13. f4 {[%emt 0:02:56]} Nd7 {[%emt 0:03:09]} 14. Bxg7 {[%emt 0:01:57]} Kxg7 {[%emt 0:00:02]} 15. Kh1 {[%emt 0:00:19]} Qb6 {[%emt 0:01:04]} 16. Qc2 {[%emt 0:16:48]} a4 {[%emt 0:06:31]} 17. Rd3 {[%emt 0:00:58]} Qc5 {[%emt 0:04:52]} 18. Qd2 {[%emt 0:06:50]} Nf6 {[%emt 0:06:12]} 19. Re3 {[%emt 0:16:04]} e6 {[%emt 0:02:23]} 20. f5 {[%emt 0:08:44]} exf5 {[%emt 0:00:12]} 21. Rh3 {[%emt 0:00:49]} h5 {[%emt 0:04:01]} 22. exf5 {[%emt 0:05:34]} Rae8 {[%emt 0:00:29]} 23. Rh4 {[%emt 0:03:51]} Qe3 {[%emt 0:01:09]} 24. Rd4 {[%emt 0:02:42]} Qh3 {[%emt 0:04:33]} 25. Bf3 {[%emt 0:03:18]} Qxf5 {[%emt 0:00:44]} 26. Rf4 {[%emt 0:01:34]} Qg5 {[%emt 0:12:10]} 27. Bxc6 {[%emt 0:00:17]} bxc6 {[%emt 0:01:08]} 28. h4 {[%emt 0:00:48]} Qg3 {[%emt 0:02:57]} 29. Qd4 {[%emt 0:00:48]} Re5 {[%emt 0:04:11]} 30. Rxf6 {[%emt 0:00:24]} a3 {[%emt 0:00:02]} 31. b3 {[%emt 0:03:25]} Kg8 {[%emt 0:04:19]} 32. Qf4 {[%emt 0:01:29]} Qd3 {[%emt 0:04:22]} 33. Rf3 {[%emt 0:00:16]} 1-0

[Event "Nis GM 2019"]
[Site "Nis"]
[Date "2019.12.08"]
[Round "9.1"]
[White "Maksimovic, Branimir"]
[Black "Miljkovic, Miroslav D"]
[Result "1/2-1/2"]
[ECO "B33"]
[WhiteElo "2320"]
[BlackElo "2496"]
[Annotator "ChessBase"]
[PlyCount "113"]
[EventDate "2019.11.30"]
[EventType "tourn"]
[EventCountry "SRB"]
[SourceTitle "playchess.com"]
[Source "ChessBase"]
[SourceQuality "1"]
[TimeControl "40/5400+30:1800+30"]

1. e4 {[%emt 0:00:00]} c5 {[%emt 0:00:00]} 2. Nf3 {[%emt 0:00:00]} Nc6 {[%emt 0:00:00]} 3. d4 {[%emt 0:00:19]} cxd4 {[%emt 0:00:07]} 4. Nxd4 {[%emt 0:00:03]} Nf6 {[%emt 0:00:23]} 5. Nc3 {[%emt 0:00:05]} e5 {[%emt 0:00:14]} 6. Ndb5 {[%emt 0:00:13]} d6 {[%emt 0:00:09]} 7. Bg5 {[%emt 0:00:14]} a6 {[%emt 0:00:14]} 8. Na3 {[%emt 0:00:03]} b5 {[%emt 0:00:34]} 9. Nd5 {[%emt 0:00:07]} Be7 {[%emt 0:00:09]} 10. Bxf6 {[%emt 0:00:13]} Bxf6 {[%emt 0:00:08]} 11. c3 {[%emt 0:00:05]} Bg5 {[%emt 0:01:21]} 12. Nc2 {[%emt 0:00:16]} Ne7 {[%emt 0:00:18]} 13. Nxe7 {[%emt 0:05:38]} Qxe7 {[%emt 0:00:40]} 14. a4 {[%emt 0:02:21]} bxa4 {[%emt 0:01:19]} 15. Nb4 {[%emt 0:02:38]} O-O {[%emt 0:01:14]} 16. Rxa4 {[%emt 0:01:00]} a5 {[%emt 0:02:48]} 17. Bc4 {[%emt 0:08:06]} Qc7 {[%emt 0:23:52]} 18. Nd5 {[%emt 0:03:32]} Qc5 {[%emt 0:01:55]} 19. h4 {[%emt 0:09:12]} Bd8 {[%emt 0:05:42]} 20. Qd3 {[%emt 0:04:17]} Bb7 {[%emt 0:11:54]} 21. b3 {[%emt 0:06:34]} Rc8 {[%emt 0:02:59]} 22. Rh3 {[%emt 0:04:15]} Kh8 {[%emt 0:02:48]} 23. g4 {[%emt 0:01:05]} Bc6 {[%emt 0:06:34]} 24. b4 {[%emt 0:09:25]} Qa7 {[%emt 0:00:51]} 25. Bb5 {[%emt 0:01:00]} Bxd5 {[%emt 0:02:44]} 26. Qxd5 {[%emt 0:01:15]} Bb6 {[%emt 0:01:03]} 27. Ra2 {[%emt 0:00:43]} Qc7 {[%emt 0:00:26]} 28. Kf1 {[%emt 0:12:09]} axb4 {[%emt 0:02:00]} 29. cxb4 {[%emt 0:00:02]} Qc1+ {[%emt 0:06:01]} 30. Kg2 {[%emt 0:00:06]} Qb1 {[%emt 0:03:46]} 31. Bc6 {[%emt 0:11:58]} Qxb4 {[%emt 0:02:49]} 32. Rb3 {[%emt 0:02:00]} Qc5 {[%emt 0:02:13]} 33. Bb7 {[%emt 0:00:26]} Rcd8 {[%emt 0:07:21]} 34. Rb5 {[%emt 0:02:41]} Qc7 {[%emt 0:01:13]} 35. Qc6 {[%emt 0:00:04]} Qxc6 {[%emt 0:00:59]} 36. Bxc6 {[%emt 0:00:03]} Bc5 {[%emt 0:02:53]} 37. Rba5 {[%emt 0:00:23]} g5 {[%emt 0:02:08]} 38. h5 {[%emt 0:01:22]} Kg7 {[%emt 0:00:40]} 39. Ra8 {[%emt 0:00:32]} Rb8 {[%emt 0:00:11]} 40. Bd5 {[%emt 0:00:00]} h6 {[%emt 0:00:00]} 41. Kg3 {[%emt 0:03:16]} Rb1 {[%emt 0:01:02]} 42. Rxf8 {[%emt 0:01:54]} Kxf8 {[%emt 0:00:07]} 43. Ra8+ {[%emt 0:03:22]} Kg7 {[%emt 0:00:11]} 44. Ra2 {[%emt 0:00:24]} Kf8 {[%emt 0:10:33]} 45. Ra8+ {[%emt 0:01:14]} Ke7 {[%emt 0:03:03]} 46. Rh8 {[%emt 0:09:16]} Rg1+ {[%emt 0:08:06]} 47. Kh3 {[%emt 0:00:50]} Bxf2 {[%emt 0:01:52]} 48. Rh7 {[%emt 0:01:23]} Rg3+ {[%emt 0:00:13]} 49. Kh2 {[%emt 0:00:05]} Rf3 {[%emt 0:00:31]} 50. Rxh6 {[%emt 0:00:42]} Be3 {[%emt 0:04:16]} 51. Kg2 {[%emt 0:02:42]} Rf2+ {[%emt 0:01:08]} 52. Kg3 {[%emt 0:00:17]} Rf1 {[%emt 0:01:00]} 53. Rh7 {[%emt 0:02:04]} Kf8 {[%emt 0:01:20]} 54. h6 {[%emt 0:00:43]} Kg8 {[%emt 0:02:25]} 55. Rg7+ {[%emt 0:00:06]} Kf8 {[%emt 0:01:03]} 56. Rh7 {[%emt 0:00:57]} Kg8 {[%emt 0:00:22]} 57. Rxf7 1/2-1/2

[Event "Nis GM 2019"]
[Site "Nis"]
[Date "2019.12.08"]
[Round "9.2"]
[White "Nikolaidis, Ioannis"]
[Black "Djukic, Nikola"]
[Result "1/2-1/2"]
[ECO "D71"]
[WhiteElo "2531"]
[BlackElo "2507"]
[Annotator "ChessBase"]
[PlyCount "58"]
[EventDate "2019.11.30"]
[EventType "tourn"]
[EventCountry "SRB"]
[SourceTitle "playchess.com"]
[Source "ChessBase"]
[SourceQuality "1"]
[TimeControl "40/5400+30:1800+30"]

1. d4 {[%emt 0:00:01]} Nf6 {[%emt 0:00:00]} 2. c4 {[%emt 0:01:32]} g6 {[%emt 0:00:00]} 3. g3 {[%emt 0:00:47]} c5 {[%emt 0:07:04]} 4. Nf3 {[%emt 0:01:15]} cxd4 {[%emt 0:01:20]} 5. Nxd4 {[%emt 0:00:36]} d5 {[%emt 0:00:20]} 6. Bg2 {[%emt 0:01:38]} dxc4 {[%emt 0:05:30]} 7. O-O {[%emt 0:02:56]} Bg7 {[%emt 0:00:07]} 8. Qa4+ {[%emt 0:17:37]} Nbd7 {[%emt 0:04:53]} 9. Rd1 {[%emt 0:02:42]} O-O {[%emt 0:02:46]} 10. Qxc4 {[%emt 0:00:41]} Qa5 {[%emt 0:04:49]} 11. Qb5 {[%emt 0:14:49]} Qxb5 {[%emt 0:11:38]} 12. Nxb5 {[%emt 0:01:39]} a6 {[%emt 0:00:05]} 13. Nd4 {[%emt 0:03:25]} Nb6 {[%emt 0:01:04]} 14. Nb3 {[%emt 0:07:35]} Nc4 {[%emt 0:06:25]} 15. Rd4 {[%emt 0:04:39]} Nd6 {[%emt 0:01:16]} 16. Nc3 {[%emt 0:00:39]} Ra7 {[%emt 0:04:06]} 17. Rd1 {[%emt 0:17:12]} Nc4 {[%emt 0:10:38]} 18. Nd2 {[%emt 0:00:57]} Nxd2 {[%emt 0:10:27]} 19. Bxd2 {[%emt 0:00:07]} b5 {[%emt 0:00:05]} 20. Be3 {[%emt 0:01:56]} Rd7 {[%emt 0:00:07]} 21. Bc5 {[%emt 0:03:43]} Rc7 {[%emt 0:02:54]} 22. Bb6 {[%emt 0:01:04]} Rc4 {[%emt 0:04:34]} 23. Rac1 {[%emt 0:02:23]} Be6 {[%emt 0:00:16]} 24. b3 {[%emt 0:00:50]} Rcc8 {[%emt 0:00:07]} 25. Ba5 {[%emt 0:00:46]} Rc5 {[%emt 0:07:24]} 26. Bb4 {[%emt 0:04:07]} Rc7 {[%emt 0:00:05]} 27. Ba5 {[%emt 0:00:43]} Rc5 {[%emt 0:02:46]} 28. Bb4 {[%emt 0:02:28]} Rc7 {[%emt 0:00:07]} 29. Ba5 {[%emt 0:00:14]} Rc5 {[%emt 0:02:22]} 1/2-1/2

[Event "Nis GM 2019"]
[Site "Nis"]
[Date "2019.12.08"]
[Round "9.3"]
[White "Radovanovic, Mihajlo"]
[Black "Ivic, Velimir"]
[Result "1/2-1/2"]
[ECO "A05"]
[WhiteElo "2479"]
[BlackElo "2531"]
[Annotator "ChessBase"]
[PlyCount "70"]
[EventDate "2019.11.30"]
[EventType "tourn"]
[EventCountry "SRB"]
[SourceTitle "playchess.com"]
[Source "ChessBase"]
[SourceQuality "1"]
[TimeControl "40/5400+30:1800+30"]

1. Nf3 {[%emt 0:00:00]} Nf6 {[%emt 0:00:00]} 2. c4 {[%emt 0:00:00]} g6 {[%emt 0:00:00]} 3. Nc3 {[%emt 0:00:00]} d5 {[%emt 0:00:00]} 4. cxd5 {[%emt 0:00:13]} Nxd5 {[%emt 0:00:05]} 5. Qb3 {[%emt 0:00:08]} Nb6 {[%emt 0:00:16]} 6. d4 {[%emt 0:00:08]} Bg7 {[%emt 0:00:05]} 7. e4 {[%emt 0:00:06]} Bg4 {[%emt 0:00:10]} 8. Bb5+ {[%emt 0:00:13]} c6 {[%emt 0:00:05]} 9. Ng5 {[%emt 0:00:07]} O-O {[%emt 0:00:06]} 10. Be2 {[%emt 0:00:03]} Bxe2 {[%emt 0:00:05]} 11. Nxe2 {[%emt 0:00:03]} c5 {[%emt 0:00:11]} 12. d5 {[%emt 0:06:23]} Qd7 {[%emt 0:12:06]} 13. O-O {[%emt 0:08:01]} Na6 {[%emt 0:02:14]} 14. a4 {[%emt 0:08:59]} c4 {[%emt 0:09:35]} 15. Qa3 {[%emt 0:00:31]} h6 {[%emt 0:03:08]} 16. Nf3 {[%emt 0:14:47]} Qd6 {[%emt 0:00:25]} 17. Qe3 {[%emt 0:00:23]} e6 {[%emt 0:09:29]} 18. dxe6 {[%emt 0:04:36]} Qxe6 {[%emt 0:01:27]} 19. Bd2 {[%emt 0:04:47]} Rfe8 {[%emt 0:04:15]} 20. Ng3 {[%emt 0:00:39]} Rad8 {[%emt 0:12:33]} 21. Bc3 {[%emt 0:05:47]} Rd3 {[%emt 0:01:41]} 22. Qf4 {[%emt 0:00:07]} Nc5 {[%emt 0:08:52]} 23. Bxg7 {[%emt 0:02:00]} Kxg7 {[%emt 0:00:02]} 24. a5 {[%emt 0:04:27]} Nbd7 {[%emt 0:01:02]} 25. Rae1 {[%emt 0:01:22]} Qf6 {[%emt 0:05:33]} 26. Qxf6+ {[%emt 0:09:56]} Nxf6 {[%emt 0:02:00]} 27. e5 {[%emt 0:01:11]} Nfd7 {[%emt 0:01:08]} 28. Ne4 {[%emt 0:01:31]} Nxe4 {[%emt 0:01:44]} 29. Rxe4 {[%emt 0:00:01]} Rd5 {[%emt 0:01:58]} 30. Rxc4 {[%emt 0:02:59]} Nxe5 {[%emt 0:00:41]} 31. Nxe5 {[%emt 0:00:19]} Rexe5 {[%emt 0:02:11]} 32. b4 {[%emt 0:00:19]} Re2 {[%emt 0:02:31]} 33. g3 {[%emt 0:02:38]} g5 {[%emt 0:12:20]} 34. Rc7 {[%emt 0:02:36]} Rb2 {[%emt 0:03:49]} 35. Rxb7 {[%emt 0:01:23]} Rxa5 {[%emt 0:00:05]} 1/2-1/2

[Event "Nis GM 2019"]
[Site "Nis"]
[Date "2019.12.08"]
[Round "9.5"]
[White "Perunovic, Miodrag"]
[Black "Dimitrov, Radoslav"]
[Result "1/2-1/2"]
[ECO "B03"]
[WhiteElo "2433"]
[BlackElo "2515"]
[Annotator "ChessBase"]
[PlyCount "132"]
[EventDate "2019.11.30"]
[EventType "tourn"]
[EventCountry "SRB"]
[SourceTitle "playchess.com"]
[Source "ChessBase"]
[SourceQuality "1"]
[TimeControl "40/5400+30:1800+30"]

1. e4 {[%emt 0:00:00]} Nf6 {[%emt 0:01:08]} 2. e5 {[%emt 0:00:00]} Nd5 {[%emt 0:00:06]} 3. d4 {[%emt 0:00:00]} d6 {[%emt 0:00:05]} 4. Bc4 {[%emt 0:00:02]} Nb6 {[%emt 0:04:08]} 5. Bb3 {[%emt 0:00:03]} dxe5 {[%emt 0:03:48]} 6. Qh5 {[%emt 0:00:03]} e6 {[%emt 0:00:08]} 7. dxe5 {[%emt 0:00:02]} a5 {[%emt 0:00:19]} 8. a4 {[%emt 0:00:03]} Na6 {[%emt 0:07:58]} 9. Nc3 {[%emt 0:00:21]} Nc5 {[%emt 0:00:43]} 10. Nf3 {[%emt 0:00:08]} Nxb3 {[%emt 0:02:03]} 11. Bg5 {[%emt 0:00:02]} Be7 {[%emt 0:00:26]} 12. cxb3 {[%emt 0:00:10]} h6 {[%emt 0:00:22]} 13. Rd1 {[%emt 0:07:40]} Nd5 {[%emt 0:06:31]} 14. Bxe7 {[%emt 0:23:14]} Qxe7 {[%emt 0:00:04]} 15. O-O {[%emt 0:00:07]} Nxc3 {[%emt 0:05:26]} 16. bxc3 {[%emt 0:00:03]} Bd7 {[%emt 0:00:26]} 17. Qg4 {[%emt 0:02:49]} O-O {[%emt 0:08:51]} 18. Nd4 {[%emt 0:01:40]} Rfd8 {[%emt 0:09:33]} 19. Rd3 {[%emt 0:03:07]} c5 {[%emt 0:05:17]} 20. Rg3 {[%emt 0:01:52]} g6 {[%emt 0:00:18]} 21. Nc2 {[%emt 0:05:03]} b5 {[%emt 0:04:19]} 22. Qf4 {[%emt 0:00:18]} h5 {[%emt 0:03:46]} 23. h4 {[%emt 0:03:31]} c4 {[%emt 0:00:40]} 24. bxc4 {[%emt 0:01:37]} bxa4 {[%emt 0:00:02]} 25. Rg5 {[%emt 0:00:02]} Kg7 {[%emt 0:06:40]} 26. Rd1 {[%emt 0:11:43]} a3 {[%emt 0:04:03]} 27. Nxa3 {[%emt 0:07:48]} Be8 {[%emt 0:14:37]} 28. Rd6 {[%emt 0:01:16]} Rdb8 {[%emt 0:00:19]} 29. g4 {[%emt 0:06:20]} Rb3 {[%emt 0:00:15]} 30. Nc2 {[%emt 0:15:35]} Rb1+ {[%emt 0:00:10]} 31. Kg2 {[%emt 0:05:52]} Qb7+ {[%emt 0:00:14]} 32. f3 {[%emt 0:00:11]} Qb2 {[%emt 0:00:53]} 33. Rd2 {[%emt 0:02:38]} Qc1 {[%emt 0:03:41]} 34. gxh5 {[%emt 0:00:02]} Kg8 {[%emt 0:03:22]} 35. hxg6 {[%emt 0:00:05]} fxg6 {[%emt 0:00:23]} 36. Kg3 {[%emt 0:00:19]} Rb2 {[%emt 0:02:17]} 37. Rxg6+ {[%emt 0:01:09]} Bxg6 {[%emt 0:00:34]} 38. Rd8+ {[%emt 0:00:01]} Rxd8 39. Qxc1 {[%emt 0:00:01]} Rxc2 {[%emt 0:00:42]} 40. Qg5 {[%emt 0:00:00]} Rd7 {[%emt 0:00:00]} 41. h5 {[%emt 0:00:37]} Rxc3 {[%emt 0:06:17]} 42. hxg6 {[%emt 0:00:37]} Rdd3 {[%emt 0:01:38]} 43. Qe7 {[%emt 0:08:09]} Rxf3+ {[%emt 0:01:16]} 44. Kg4 {[%emt 0:00:11]} Rg3+ {[%emt 0:01:50]} 45. Kh5 {[%emt 0:00:18]} Rh3+ {[%emt 0:01:20]} 46. Kg5 {[%emt 0:00:13]} Rhg3+ {[%emt 0:07:46]} 47. Kf6 {[%emt 0:00:19]} Rcf3+ {[%emt 0:00:07]} 48. Kxe6 {[%emt 0:00:02]} Rxg6+ {[%emt 0:00:08]} 49. Kd5 {[%emt 0:00:04]} Rf8 {[%emt 0:02:03]} 50. c5 {[%emt 0:03:18]} Rc8 {[%emt 0:02:57]} 51. Qb7 {[%emt 0:04:51]} Rd8+ {[%emt 0:00:18]} 52. Ke4 {[%emt 0:00:42]} Rg7 {[%emt 0:03:14]} 53. Qa6 {[%emt 0:04:57]} a4 {[%emt 0:03:40]} 54. c6 {[%emt 0:01:57]} Re8 {[%emt 0:05:35]} 55. Qa5 {[%emt 0:05:08]} Ree7 {[%emt 0:00:32]} 56. Qd5+ {[%emt 0:02:12]} Kh7 {[%emt 0:00:12]} 57. Qd3 {[%emt 0:03:21]} Ra7 {[%emt 0:00:43]} 58. Kd5+ {[%emt 0:01:26]} Rg6 {[%emt 0:00:56]} 59. e6 {[%emt 0:01:31]} a3 {[%emt 0:00:18]} 60. Qh3+ {[%emt 0:00:52]} Kg8 {[%emt 0:01:18]} 61. Qb3 {[%emt 0:00:55]} Rgg7 {[%emt 0:00:56]} 62. Kd6 {[%emt 0:01:07]} Kh7 {[%emt 0:00:23]} 63. Qa2 {[%emt 0:00:22]} Kg6 {[%emt 0:00:19]} 64. Ke5 {[%emt 0:01:47]} Ra5+ {[%emt 0:00:01]} 65. Kd6 {[%emt 0:00:08]} Raa7 {[%emt 0:00:03]} 66. Ke5 {[%emt 0:01:25]} Ra5+ {[%emt 0:00:01]} 1/2-1/2